bitfinex-derivatives/quotes_BNBF0:USTF0_20250710
["timestamp","ask_amount","ask_price","bid_price","bid_amount"]
[1752111196304,2.2367008,668.91,668.3,1.6816326]
[1752111196600,2.2367008,668.92,668.3,1.6816326]
[1752111199207,2.2367008,668.92,668.29,1.6816326]
[1752111199707,2.2367008,668.92,668.3,1.6816326]
[1752111200007,2.2367008,668.9,668.32,1.6816326]
[1752111200208,2.2367008,668.89,668.32,1.6816326]
[1752111203007,2.2367008,668.88,668.33,1.6816326]
[1752111204203,2.2367008,668.89,668.32,1.6816326]
[1752111204503,2.2367008,668.88,668.33,1.6816326]
[1752111210012,2.2367008,668.88,668.32,1.6816326]
[1752111210409,2.2367008,668.89,668.32,1.6816326]
[1752111210709,2.2367008,668.88,668.32,1.6816326]
[1752111211112,2.2367008,668.89,668.32,1.6816326]
[1752111211609,2.2367008,668.89,668.31,1.6816326]
[1752111212114,2.2367008,668.89,668.32,1.6816326]
[1752111214417,2.2367008,668.88,668.32,1.6816326]
[1752111215615,2.2367008,668.88,668.33,1.6816326]
[1752111217416,2.2367008,668.87,668.33,1.6816326]
[1752111217917,2.2367008,668.88,668.32,1.6816326]
[1752111218416,2.2367008,668.89,668.32,1.6816326]
[1752111218817,2.2367008,668.88,668.32,1.6816326]
[1752111220122,2.2367008,668.89,668.32,1.6816326]
[1752111220319,2.2367008,668.88,668.33,1.6816326]
[1752111221118,2.2367008,668.88,668.32,1.6816658]
[1752111221624,2.2367008,668.87,668.33,1.6816658]
[1752111221924,2.2367008,668.87,668.34,1.6816658]
[1752111224523,2.2367008,668.87,668.35,1.995]
[1752111224824,2.2367008,668.89,668.35,1.995]
[1752111225724,2.2367008,668.9,668.35,1.995]
[1752111228434,2.2367008,668.89,668.35,1.995]
[1752111231225,2.2367008,668.88,668.35,3.6766658]
[1752111231527,2.2367008,668.95,668.4,1.6816658]
[1752111231931,2.2367008,668.94,668.4,1.6816658]
[1752111232128,2.2367008,668.94,668.41,1.6816658]
[1752111232326,2.2367008,668.94,668.35,1.995]
[1752111232327,2.2367008,668.95,668.4,1.6816658]
[1752111233132,2.2367008,668.95,668.39,1.6816658]
[1752111233331,2.2367008,668.96,668.39,1.6816658]
[1752111234227,0.26025405,668.97,668.36,1.6816658]
[1752111235426,0.26025405,668.97,668.35,3.6766658]
[1752111237828,0.26025405,668.97,668.35,1.995]
[1752111242240,0.26025405,668.97,668.37,1.6816658]
[1752111242740,0.26025405,668.97,668.38,1.5244572]
[1752111242940,0.26025405,668.97,668.39,1.5244572]
[1752111243136,0.26025405,668.97,668.4,1.5244572]
[1752111243441,0.26025405,668.97,668.41,1.5244572]
[1752111243639,0.26025405,668.97,668.42,1.5244572]
[1752111243839,0.26025405,668.97,668.43,1.5244572]
[1752111244038,0.26025405,668.97,668.44,1.5244572]
[1752111244238,0.26025405,668.97,668.45,1.5244572]
[1752111244444,0.26025405,668.97,668.46,1.5244572]
[1752111244738,0.26025405,668.97,668.47,1.5244572]
[1752111244942,0.26025405,668.97,668.48,1.5244572]
[1752111245142,0.26025405,668.97,668.49,1.5244572]
[1752111245339,0.26025405,668.97,668.5,1.5244572]
[1752111245640,0.26025405,668.97,668.51,1.5244572]
[1752111245944,0.26025405,668.97,668.52,1.5244572]
[1752111246145,0.26025405,668.97,668.53,1.5244572]
[1752111246343,0.26025405,668.97,668.54,1.5244572]
[1752111246644,0.26025405,668.97,668.55,1.5244572]
[1752111246944,0.26025405,668.97,668.56,1.5244572]
[1752111247243,0.26025405,668.97,668.57,1.5244572]
[1752111247440,0.26025405,668.97,668.58,1.5244572]
[1752111247647,0.26025405,668.97,668.59,1.5244572]
[1752111247841,0.26025405,668.97,668.6,1.5244572]
[1752111248043,0.26025405,668.97,668.35,1.995]
[1752111248245,0.26025405,668.97,668.36,1.5241384]
[1752111248444,0.26025405,668.97,668.37,1.5241384]
[1752111248642,0.26025405,668.97,668.38,1.5241384]
[1752111248844,0.26025405,668.97,668.35,1.995]
[1752111248845,0.26025405,668.97,668.39,1.5241384]
[1752111249046,0.26025405,668.97,668.4,1.5241384]
[1752111249246,0.26025405,668.97,668.41,1.5241384]
[1752111249548,0.26025405,668.97,668.42,1.5241384]
[1752111249743,3.3435695,669.13,668.43,1.5241384]
[1752111249947,0.26019567,668.87,668.44,1.5241384]
[1752111250147,3.3435695,669.13,668.45,1.5241384]
[1752111250347,0.26019664,668.87,668.46,1.5241384]
[1752111250543,0.26019664,668.87,668.47,1.5241384]
[1752111250844,3.3435695,669.13,668.48,1.5241384]
[1752111251050,3.3435695,669.13,668.49,1.5241384]
[1752111251246,3.3435695,669.13,668.5,1.5241384]
[1752111251543,3.3435695,669.12,668.51,1.5241384]
[1752111251746,3.3435695,669.12,668.52,1.5241384]
[1752111251943,0.26019081,668.97,668.53,1.5241384]
[1752111252143,0.26019081,668.97,668.54,1.5241384]
[1752111252443,0.26019081,668.97,668.55,1.5241384]
[1752111252647,0.26019081,668.97,668.56,1.5241384]
[1752111252843,0.26019081,668.97,668.35,1.995]
[1752111253147,0.26019081,668.97,668.36,1.5241851]
[1752111253446,0.26019081,668.97,668.37,1.5241851]
[1752111253647,0.26019081,668.97,668.38,1.5241851]
[1752111253843,0.26019081,668.97,668.39,1.5241851]
[1752111254047,0.26019081,668.97,668.4,1.5241851]
[1752111254243,0.26019081,668.97,668.41,1.5241851]
[1752111254443,0.26019081,668.97,668.42,1.5241851]
[1752111254644,0.26019081,668.97,668.43,1.5241851]
[1752111254846,0.26019081,668.97,668.44,1.5241851]
[1752111255047,0.26019081,668.97,668.45,1.5241851]
[1752111255248,0.26019081,668.97,668.46,1.5241851]
[1752111255446,0.26019081,668.97,668.47,1.5241851]
[1752111255649,0.26019081,668.97,668.48,1.5241851]
[1752111255846,0.26019081,668.97,668.49,1.5241851]
[1752111256048,0.26019081,668.97,668.5,1.5241851]
[1752111256245,0.26019081,668.97,668.51,1.5241851]
[1752111256451,0.26019081,668.97,668.52,1.5241851]
[1752111256750,0.26019081,668.97,668.53,1.5241851]
[1752111257049,0.26019081,668.97,668.54,1.5241851]
[1752111257347,0.26019081,668.97,668.55,1.5241851]
[1752111257547,0.26019081,668.97,668.35,1.995]
[1752111257548,0.26019081,668.97,668.56,1.5241851]
[1752111257751,0.26019081,668.97,668.35,1.995]
[1752111258049,0.26019081,668.97,668.36,1.5242286]
[1752111258248,0.26019081,668.97,668.37,1.5242286]
[1752111258444,0.26019081,668.97,668.38,1.5242286]
[1752111258652,0.26019081,668.97,668.39,1.5242286]
[1752111258851,0.26019081,668.97,668.4,1.5242286]
[1752111259050,0.26019081,668.97,668.41,1.5242286]
[1752111259348,0.26019081,668.97,668.35,1.995]
[1752111259349,0.26019081,668.97,668.42,1.5242286]
[1752111259552,0.26019081,668.97,668.43,1.5242286]
[1752111259754,0.26019081,668.97,668.44,1.5242286]
[1752111259948,0.26019081,668.97,668.45,1.5242286]
[1752111260154,0.26019081,668.97,668.46,1.5242286]
[1752111260351,0.26019081,668.97,668.47,1.5242286]
[1752111260654,0.26019081,668.97,668.48,1.5242286]
[1752111260850,0.26019081,668.97,668.49,1.5242286]
[1752111261050,0.26019081,668.97,668.5,1.5242286]
[1752111261254,0.26019081,668.97,668.51,1.5242286]
[1752111261448,0.26019081,668.97,668.35,1.995]
[1752111261449,0.26019081,668.97,668.52,1.5242286]
[1752111261653,0.26019081,668.97,668.53,1.5242286]
[1752111261849,0.26019081,668.97,668.54,1.5242286]
[1752111262054,0.26019081,668.97,668.55,1.5242286]
[1752111262254,0.26019081,668.97,668.35,1.995]
[1752111262255,0.26019081,668.97,668.56,1.5242286]
[1752111262555,0.26019081,668.97,668.39,1.6816658]
[1752111262556,0.26019081,668.97,668.57,1.5242286]
[1752111262854,0.26019081,668.97,668.58,1.5242286]
[1752111263055,0.26019081,668.97,668.59,1.5242286]
[1752111263255,0.26019081,668.97,668.6,1.5242286]
[1752111263555,0.26019081,668.97,668.61,1.5242286]
[1752111263854,0.26019081,668.97,668.62,1.5242286]
[1752111264056,0.26019081,668.97,668.63,1.5242286]
[1752111264256,0.26019081,668.97,668.64,1.5242286]
[1752111264458,0.26019081,668.97,668.65,1.5242286]
[1752111264659,0.26019081,668.97,668.39,1.6816658]
[1752111264859,0.26019081,668.97,668.4,1.5238151]
[1752111265155,0.26019081,668.97,668.41,1.5238151]
[1752111265455,0.26019081,668.97,668.42,1.5238151]
[1752111265654,0.26019081,668.97,668.43,1.5238151]
[1752111265956,0.26019081,668.97,668.44,1.5238151]
[1752111266157,0.26019081,668.97,668.45,1.5238151]
[1752111266357,0.26019081,668.97,668.46,1.5238151]
[1752111266655,0.26019081,668.97,668.47,1.5238151]
[1752111266960,0.26019081,668.97,668.48,1.5238151]
[1752111267161,0.26019081,668.97,668.49,1.5238151]
[1752111267460,0.26019081,668.97,668.5,1.5238151]
[1752111267661,0.26019081,668.97,668.51,1.5238151]
[1752111267858,0.26019081,668.97,668.52,1.5238151]
[1752111268057,0.26019081,668.97,668.53,1.5238151]
[1752111268256,0.26019081,668.97,668.54,1.5238151]
[1752111268461,0.26019081,668.97,668.55,1.5238151]
[1752111268661,0.26019081,668.97,668.56,1.5238151]
[1752111268958,0.26019081,668.97,668.57,1.5238151]
[1752111269162,0.26019081,668.97,668.58,1.5238151]
[1752111269361,0.26019081,668.97,668.59,1.5238151]
[1752111269561,0.26019081,668.97,668.6,1.5238151]
[1752111269861,0.26019081,668.97,668.61,1.5238151]
[1752111270058,0.26019081,668.97,668.62,1.5238151]
[1752111270258,0.26019081,668.97,668.39,1.6816658]
[1752111270259,0.26019081,668.97,668.63,1.5238151]
[1752111270561,0.26019081,668.97,668.64,1.5238151]
[1752111270760,0.26019081,668.97,668.39,1.6816658]
[1752111270957,0.26019081,668.97,668.4,1.523275]
[1752111271157,0.26019081,668.97,668.41,1.523275]
[1752111271359,0.26019081,668.97,668.39,1.6816658]
[1752111271360,0.26019081,668.97,668.42,1.523275]
[1752111271561,0.26019081,668.97,668.43,1.523275]
[1752111271761,0.26019081,668.97,668.44,1.523275]
[1752111271962,0.26019081,668.97,668.45,1.523275]
[1752111272263,0.26019081,668.97,668.46,1.523275]
[1752111272562,0.26019081,668.97,668.47,1.523275]
[1752111272859,0.26019081,668.97,668.48,1.523275]
[1752111273060,0.26019081,668.97,668.49,1.523275]
[1752111273260,0.26019081,668.97,668.5,1.523275]
[1752111273459,0.26019081,668.97,668.51,1.523275]
[1752111273763,0.26014024,669.09,668.52,1.523275]
[1752111273963,0.26014024,669.09,668.53,1.523275]
[1752111274264,0.26014024,669.09,668.54,1.523275]
[1752111274460,0.26014024,669.09,668.55,1.523275]
[1752111274662,0.26014024,669.09,668.56,1.523275]
[1752111274862,0.26014024,669.09,668.57,1.523275]
[1752111275058,0.26014024,669.09,668.58,1.523275]
[1752111275260,0.26014024,669.09,668.59,1.523275]
[1752111275458,0.26014024,669.09,668.6,1.523275]
[1752111275661,0.26014024,669.09,668.61,1.523275]
[1752111275859,0.26014024,669.09,668.62,1.523275]
[1752111276060,0.26014024,669.09,668.63,1.523275]
[1752111276361,0.26014024,669.09,668.64,1.523275]
[1752111276561,0.26014024,669.09,668.65,1.523275]
[1752111276760,0.26014024,669.09,668.54,2.082]
[1752111276959,0.26014024,669.09,668.55,1.5239994]
[1752111277163,0.26014024,669.09,668.56,1.5239994]
[1752111277361,0.26014024,669.09,668.57,1.5239994]
[1752111277659,0.26014024,669.09,668.58,1.5239994]
[1752111277862,0.26014024,669.09,668.59,1.5239994]
[1752111278061,0.26014024,669.09,668.6,1.5239994]
[1752111278260,0.26014024,669.09,668.61,1.5239994]
[1752111278561,0.26014024,669.09,668.62,1.5239994]
[1752111278765,0.26014024,669.09,668.63,1.5239994]
[1752111278965,0.26014024,669.09,668.54,2.082]
[1752111278966,0.26014024,669.09,668.64,1.5239994]
[1752111279163,0.26014024,669.09,668.65,1.5239994]
[1752111279467,0.26014024,669.09,668.54,2.082]
[1752111279664,0.26014024,669.09,668.55,1.5239304]
[1752111279865,0.26014024,669.09,668.56,1.5239304]
[1752111280065,0.26014024,669.09,668.57,1.5239304]
[1752111280365,0.26014024,669.09,668.58,1.5239304]
[1752111280665,0.26014024,669.09,668.59,1.5239304]
[1752111280866,0.26014024,669.09,668.6,1.5239304]
[1752111281064,0.26014024,669.09,668.61,1.5239304]
[1752111281271,0.26014024,669.09,668.62,1.5239304]
[1752111281470,0.26014024,669.09,668.63,1.5239304]
[1752111281671,0.26014024,669.09,668.64,1.5239304]
[1752111281867,0.26014024,669.09,668.54,2.082]
[1752111282069,0.26014024,669.09,668.55,1.5239253]
[1752111282266,0.26014024,669.09,668.56,1.5239253]
[1752111282471,0.26014024,669.09,668.57,1.5239253]
[1752111282671,0.26014024,669.09,668.58,1.5239253]
[1752111282872,0.26014024,669.09,668.54,2.082]
[1752111282873,0.26014024,669.09,668.59,1.5239253]
[1752111283070,0.26014024,669.09,668.6,1.5239253]
[1752111283270,0.26014024,669.09,668.61,1.5239253]
[1752111283570,0.26014024,669.09,668.62,1.5239253]
[1752111283770,0.26014024,669.09,668.63,1.5239253]
[1752111283966,0.26014024,669.09,668.54,2.082]
[1752111284165,0.26014024,669.09,668.55,1.5239673]
[1752111284366,0.26014024,669.09,668.56,1.5239673]
[1752111284567,0.26014024,669.09,668.57,1.5239673]
[1752111284766,0.26014024,669.09,668.58,1.5239673]
[1752111284970,0.26014024,669.09,668.59,1.5239673]
[1752111285170,0.26014024,669.09,668.6,1.5239673]
[1752111285370,0.26014024,669.09,668.54,2.082]
[1752111285371,0.26014024,669.09,668.61,1.5239673]
[1752111285571,0.26014024,669.09,668.62,1.5239673]
[1752111285769,0.26014024,669.09,668.63,1.5239673]
[1752111285966,0.26014024,669.09,668.54,2.082]
[1752111286164,0.26014024,669.09,668.55,1.5240483]
[1752111286370,0.26014024,669.09,668.56,1.5240483]
[1752111286572,0.26014024,669.09,668.57,1.5240483]
[1752111286867,0.26014024,669.09,668.58,1.5240483]
[1752111287066,0.26014024,669.09,668.59,1.5240483]
[1752111287269,0.26014024,669.09,668.6,1.5240483]
[1752111287472,0.26014024,669.09,668.54,2.082]
[1752111287473,0.26014024,669.09,668.61,1.5240483]
[1752111287673,0.26014024,669.09,668.62,1.5240483]
[1752111287873,0.26014024,669.09,668.63,1.5240483]
[1752111288073,0.26014024,669.09,668.54,2.082]
[1752111288272,0.26014024,669.09,668.55,1.52416]
[1752111288569,0.26014024,669.09,668.56,1.52416]
[1752111288771,0.26014024,669.09,668.57,1.52416]
[1752111288974,0.26014024,669.09,668.58,1.52416]
[1752111289176,0.26014024,669.09,668.59,1.52416]
[1752111289375,0.26014024,669.09,668.6,1.52416]
[1752111289669,0.26014024,669.09,668.61,1.52416]
[1752111289872,0.26014024,669.09,668.62,1.52416]
[1752111290172,0.26014024,669.09,668.63,1.5242999]
[1752111290377,0.26014024,669.09,668.54,2.082]
[1752111290673,0.26014024,669.09,668.55,1.5243756]
[1752111290871,0.26014024,669.09,668.54,2.082]
[1752111290872,0.26014024,669.09,668.56,1.5243756]
[1752111291075,0.26014024,669.09,668.57,1.5243756]
[1752111291274,0.26014024,669.09,668.58,1.5243756]
[1752111291571,0.26014024,669.09,668.59,1.5243756]
[1752111291776,0.26014024,669.09,668.6,1.5243756]
[1752111291974,0.26014024,669.09,668.61,1.5243756]
[1752111292277,0.26014024,669.09,668.62,1.5243756]
[1752111292473,0.26014024,669.09,668.63,1.5243756]
[1752111292773,0.26014024,669.09,668.64,1.5243756]
[1752111292972,0.26014024,669.09,668.54,2.082]
[1752111293173,0.26014024,669.09,668.55,1.5244471]
[1752111293475,0.26014024,669.09,668.56,1.5244471]
[1752111293673,0.26014024,669.09,668.57,1.5244471]
[1752111293887,0.26014024,669.09,668.58,1.5244471]
[1752111294072,0.26014024,669.09,668.59,1.5244471]
[1752111294275,0.26014024,669.09,668.6,1.5244471]
[1752111294477,0.26014024,669.09,668.61,1.5244471]
[1752111294673,0.26014024,669.09,668.62,1.5244471]
[1752111294978,0.26014024,669.09,668.63,1.5244471]
[1752111295277,0.26014024,669.09,668.64,1.5244471]
[1752111295472,0.26014024,669.09,668.54,2.082]
[1752111295978,0.26014024,669.09,668.55,1.5244123]
[1752111296178,0.26014024,669.09,668.56,1.5244123]
[1752111296378,0.26014024,669.09,668.57,1.5244123]
[1752111296676,0.26014024,669.09,668.58,1.5244123]
[1752111296877,0.26014024,669.09,668.59,1.5244123]
[1752111297079,0.26014024,669.09,668.6,1.5244123]
[1752111297276,0.26014024,669.09,668.61,1.5244123]
[1752111297579,0.26014024,669.09,668.62,1.5244123]
[1752111297876,0.26014024,669.09,668.63,1.5244123]
[1752111298076,0.26014024,669.09,668.64,1.5244123]
[1752111298280,0.26014024,669.09,668.54,2.082]
[1752111298480,0.26014024,669.09,668.55,1.5244341]
[1752111298681,0.26014024,669.09,668.56,1.5244341]
[1752111298981,0.26014024,669.09,668.57,1.5244341]
[1752111299177,0.26014024,669.09,668.58,1.5244341]
[1752111299381,0.26014024,669.09,668.59,1.5244341]
[1752111299581,0.26014024,669.09,668.6,1.5244341]
[1752111299783,0.26014024,669.09,668.61,1.5244341]
[1752111300079,0.26014024,669.09,668.62,1.5244341]
[1752111300278,0.26014024,669.09,668.63,1.5244341]
[1752111300480,0.26014024,669.09,668.64,1.5244341]
[1752111300684,0.26014024,669.09,668.54,2.082]
[1752111300983,0.26014024,669.09,668.55,1.5244242]
[1752111301279,0.26014024,669.09,668.56,1.5244242]
[1752111301479,0.26014024,669.09,668.57,1.5244242]
[1752111301683,0.26014024,669.09,668.58,1.5244242]
[1752111301882,0.26014024,669.09,668.59,1.5244242]
[1752111302083,0.26014024,669.09,668.6,1.5244242]
[1752111302282,0.26014024,669.09,668.61,1.5244242]
[1752111302486,0.26014024,669.09,668.62,1.5244242]
[1752111302685,0.26014024,669.09,668.63,1.5244242]
[1752111302886,0.26014024,669.09,668.54,2.082]
[1752111303086,0.26014024,669.09,668.55,1.5243621]
[1752111303284,0.26014024,669.09,668.56,1.5243621]
[1752111303484,0.26014024,669.09,668.54,2.082]
[1752111303684,0.26014024,669.09,668.55,1.52436268]
[1752111303884,0.26014024,669.09,668.56,1.52436268]
[1752111304088,0.26014024,669.09,668.54,2.082]
[1752111304288,0.26014024,669.09,668.55,1.52431572]
[1752111304488,0.26014024,669.09,668.54,2.082]
[1752111304690,0.26014024,669.09,668.55,1.52431572]
[1752111304991,0.26014024,669.09,668.54,2.082]
[1752111305194,0.26014024,669.09,668.55,1.5242975]
[1752111305390,0.26014024,669.09,668.54,2.082]
[1752111305591,0.26014024,669.09,668.55,1.52427028]
[1752111305795,0.26014024,669.09,668.54,2.082]
[1752111305996,0.26014024,669.09,668.55,1.5242702]
[1752111306198,0.26014024,669.09,668.54,2.082]
[1752111306398,0.26014024,669.09,668.55,1.5242262]
[1752111306596,0.26014024,669.09,668.54,2.082]
[1752111306796,0.26014024,669.09,668.55,1.5242263]
[1752111306997,0.26014024,669.09,668.54,2.082]
[1752111307196,0.26014024,669.09,668.55,1.5242263]
[1752111307396,0.26014024,669.09,668.54,2.082]
[1752111307593,0.26014024,669.09,668.55,1.524188]
[1752111307792,0.26014024,669.09,668.54,2.082]
[1752111307993,0.26014024,669.09,668.55,1.524188]
[1752111308193,0.26014024,669.09,668.54,2.082]
[1752111308497,0.26014024,669.09,668.55,1.5241508]
[1752111308696,0.26014024,669.09,668.54,2.082]
[1752111308897,0.26014024,669.09,668.55,1.5241508]
[1752111309197,0.26014024,669.09,668.54,2.082]
[1752111309392,0.26014024,669.09,668.55,1.524115]
[1752111309595,0.26014024,669.09,668.54,2.082]
[1752111309798,0.26014024,669.09,668.55,1.524115]
[1752111310095,0.26014024,669.09,668.54,2.082]
[1752111310296,0.26014024,669.09,668.55,1.5241216]
[1752111310495,0.26014024,669.09,668.54,2.082]
[1752111310699,0.26014024,669.09,668.55,1.5241216]
[1752111310901,0.26014024,669.09,668.54,2.082]
[1752111311195,0.26014024,669.09,668.55,1.5241216]
[1752111311394,0.26014024,669.09,668.54,2.082]
[1752111311599,0.26014024,669.09,668.55,1.524128]
[1752111311796,0.26014024,669.09,668.54,2.082]
[1752111312001,0.26014024,669.09,668.55,1.524128]
[1752111312198,0.26014024,669.09,668.54,2.082]
[1752111312397,0.26014024,669.09,668.55,1.5241367]
[1752111312703,0.26014024,669.09,668.54,2.082]
[1752111312704,3.3435695,669.08,668.54,2.082]
[1752111312899,3.3435695,669.07,668.55,1.5241367]
[1752111313103,3.3435695,669.07,668.54,2.082]
[1752111313299,3.3435695,669.07,668.55,1.5241443]
[1752111313503,3.3435695,669.07,668.54,2.082]
[1752111313702,3.3435695,669.07,668.55,1.5241443]
[1752111313900,3.3435695,669.07,668.54,2.082]
[1752111314103,3.3435695,669.07,668.55,1.5241443]
[1752111314302,3.3435695,669.07,668.54,2.082]
[1752111314606,0.26014024,669.09,668.55,1.5241572]
[1752111314805,0.26014024,669.09,668.54,2.082]
[1752111315002,0.26014024,669.09,668.55,1.5241572]
[1752111315203,0.26014024,669.09,668.54,2.082]
[1752111315408,0.26014024,669.09,668.55,1.5241702]
[1752111315607,0.26014024,669.09,668.54,2.082]
[1752111315805,0.26014024,669.09,668.55,1.5241702]
[1752111316104,0.26014024,669.09,668.54,2.082]
[1752111316305,0.26014024,669.09,668.55,1.5241832]
[1752111316505,0.26014024,669.09,668.54,2.082]
[1752111316703,0.26014024,669.09,668.55,1.5241832]
[1752111316908,0.26014024,669.09,668.54,2.082]
[1752111317105,0.26014024,669.09,668.55,1.5241832]
[1752111317304,0.26014024,669.09,668.54,2.082]
[1752111317509,0.26014024,669.09,668.55,1.5241963]
[1752111317709,0.26014024,669.09,668.54,2.082]
[1752111318005,0.26014024,669.09,668.55,1.5241963]
[1752111318206,0.26014024,669.09,668.54,2.082]
[1752111318407,0.26014024,669.09,668.55,1.5242078]
[1752111318710,0.26014024,669.09,668.54,2.082]
[1752111319007,0.26014024,669.09,668.55,1.5242079]
[1752111319216,0.26014024,669.09,668.54,2.082]
[1752111319406,0.26014024,669.09,668.55,1.5242186]
[1752111319609,3.60370974,669.09,668.54,2.082]
[1752111319810,3.60370974,669.09,668.55,1.52421869]
[1752111320009,0.26014024,669.09,668.54,2.082]
[1752111320306,0.26014024,669.09,668.55,1.5242572]
[1752111320510,0.26014024,669.09,668.54,2.082]
[1752111320708,0.26014024,669.09,668.55,1.5242342]
[1752111320908,0.26014024,669.09,668.54,2.082]
[1752111321108,0.26014024,669.09,668.55,1.5242342]
[1752111321309,0.26014024,669.09,668.54,2.082]
[1752111321506,0.26014024,669.09,668.55,1.5242497]
[1752111321713,0.26014024,669.09,668.54,2.082]
[1752111322010,0.26014024,669.09,668.55,1.5242497]
[1752111322210,0.26014024,669.09,668.54,2.082]
[1752111322510,0.26014024,669.09,668.55,1.5242432]
[1752111322708,0.26014024,669.09,668.54,2.082]
[1752111322905,0.26014024,669.09,668.55,1.5242432]
[1752111323109,0.26014024,669.09,668.54,2.082]
[1752111323305,0.26014024,669.09,668.55,1.5242082]
[1752111323510,0.26014024,669.09,668.54,2.082]
[1752111323810,0.26014024,669.09,668.55,1.5242082]
[1752111324008,0.26014024,669.09,668.54,2.082]
[1752111324211,0.26014024,669.09,668.55,1.5241941]
[1752111324411,0.26014024,669.09,668.54,2.082]
[1752111324610,0.26014024,669.09,668.55,1.52417702]
[1752111324907,0.26014024,669.09,668.54,2.082]
[1752111325109,0.26014024,669.09,668.55,1.52417702]
[1752111325308,0.26014024,669.09,668.54,2.082]
[1752111325608,0.26014024,669.09,668.55,1.52414953]
[1752111325910,0.26014024,669.09,668.54,2.082]
[1752111326112,0.26014024,669.09,668.55,1.52414953]
[1752111326312,0.26014024,669.09,668.54,2.082]
[1752111326510,0.26014024,669.09,668.55,1.52412568]
[1752111326710,0.26014024,669.09,668.54,2.082]
[1752111326910,0.26014024,669.09,668.55,1.5241256]
[1752111327110,0.26014024,669.09,668.54,2.082]
[1752111327412,0.26014024,669.09,668.55,1.5241053]
[1752111327714,0.26014024,669.09,668.27,1.679016]
[1752111327912,0.26014024,669.09,668.28,1.5241053]
[1752111328111,0.26014024,669.09,668.29,1.5241053]
[1752111328314,0.26014024,669.09,668.3,1.5241053]
[1752111328510,0.26014024,669.09,668.12,0.26020345]
[1752111328511,0.26014024,669.09,668.31,1.5241053]
[1752111328815,0.26014024,669.09,668.32,1.5241053]
[1752111329012,0.26014024,669.09,668.33,1.5241053]
[1752111329213,0.26014024,669.09,668.34,1.5241053]
[1752111329414,0.26014024,669.09,668.35,1.5241053]
[1752111329613,0.26014024,669.09,668.36,1.5241053]
[1752111329912,0.26014024,669.09,668.37,1.5241053]
[1752111330114,0.26014024,669.09,668.38,1.5241053]
[1752111330309,0.26014024,669.09,668.39,1.5241053]
[1752111330511,0.26014024,669.09,668.4,1.5241053]
[1752111330715,0.26014024,669.09,668.41,1.5241053]
[1752111330914,0.26014024,669.09,668.42,1.5241053]
[1752111331110,0.26014024,669.09,668.43,1.5241053]
[1752111331413,0.26014024,669.09,668.44,1.5241053]
[1752111331609,0.26014024,669.09,668.45,1.5241053]
[1752111331813,0.26014024,669.09,668.46,1.5241053]
[1752111332011,0.26014024,669.09,668.47,1.5241053]
[1752111332210,0.26014024,669.09,668.48,1.5241053]
[1752111332410,0.26014024,669.09,668.49,1.5241053]
[1752111332614,0.26014024,669.09,668.5,1.5241053]
[1752111332815,0.26014024,669.09,668.51,1.5241053]
[1752111333009,0.26014024,669.09,668.52,1.5241053]
[1752111333213,0.26014024,669.09,668.53,1.5241053]
[1752111333415,0.26014024,669.09,668.54,1.5241053]
[1752111333616,0.26014024,669.09,668.55,1.5241053]
[1752111333811,0.26014024,669.09,668.42,2.313]
[1752111334017,0.26014024,669.09,668.43,1.5235173]
[1752111334212,0.26014024,669.09,668.44,1.5235173]
[1752111334413,0.26014024,669.09,668.45,1.5235173]
[1752111334613,0.26014024,669.09,668.46,1.5235173]
[1752111334816,0.26014024,669.09,668.47,1.5235173]
[1752111335016,0.26014024,669.09,668.48,1.5235173]
[1752111335216,0.26014024,669.09,668.49,1.5235173]
[1752111335413,0.26014024,669.09,668.5,1.5235173]
[1752111335618,0.26014024,669.09,668.51,1.5235173]
[1752111335813,0.26014024,669.09,668.52,1.5235173]
[1752111336012,0.26014024,669.09,668.53,1.5235173]
[1752111336215,0.26014024,669.09,668.54,1.5235173]
[1752111336416,0.26014024,669.09,668.55,1.5235173]
[1752111336713,0.26014024,669.09,668.42,2.313]
[1752111336917,0.26014024,669.09,668.43,1.5235742]
[1752111337115,0.26014024,669.09,668.44,1.5235742]
[1752111337318,0.26014024,669.09,668.45,1.5235742]
[1752111337618,0.26014024,669.09,668.46,1.5235742]
[1752111337815,0.26014024,669.09,668.47,1.5235742]
[1752111338020,0.26014024,669.09,668.48,1.5235742]
[1752111338216,0.26014024,669.09,668.49,1.5235742]
[1752111338416,0.26014024,669.09,668.5,1.5235742]
[1752111338621,0.26014024,669.09,668.51,1.5235742]
[1752111338920,0.26014024,669.09,668.52,1.5235742]
[1752111339120,0.26014024,669.09,668.53,1.5235742]
[1752111339320,0.26014024,669.09,668.54,1.5235742]
[1752111339618,0.26014024,669.09,668.55,1.5235742]
[1752111339821,0.26014024,669.09,668.42,2.313]
[1752111340019,0.26014024,669.09,668.43,1.5236803]
[1752111340220,0.26014024,669.09,668.44,1.5236803]
[1752111340420,0.26014024,669.09,668.45,1.5236803]